[Event "Titled Tuesday Blitz August 16 Early 2022"]
[White "Timofeev, Artyom"]
[Black "Fawzy, Adham"]
[WhiteFideId "4140419"]
[BlackFideId "10613129"]
[WhiteElo "2578"]
[BlackElo "2541"]
[Result "1-0"]
[Round "11"]
[TimeControl "180+1"]
[Date "2022.08.16"]
[WhiteClock "0:00:05"]
[BlackClock "0:00:02"]

1. e4 {[%clk 0:03:00]}  c5 {[%clk 0:02:59]} 2. Nc3 {[%clk 0:03:00]}  Nc6 {[%clk 0:02:57]} 3. Bb5 {[%clk 0:02:59]}  Nd4 {[%clk 0:02:57]} 4. Nf3 {[%clk 0:02:59]}  a6 {[%clk 0:02:57]} 5. Bd3 {[%clk 0:02:58]}  g6 {[%clk 0:02:55]} 6. O-O {[%clk 0:02:55]}  Bg7 {[%clk 0:02:55]} 7. Nxd4 {[%clk 0:02:53]}  cxd4 {[%clk 0:02:55]} 8. Ne2 {[%clk 0:02:54]}  d5 {[%clk 0:02:56]} 9. c3 {[%clk 0:02:50]}  dxe4 {[%clk 0:02:48]} 10. Bxe4 {[%clk 0:02:50]}  Nf6 {[%clk 0:02:48]} 11. Bd3 {[%clk 0:02:47]}  O-O {[%clk 0:02:47]} 12. cxd4 {[%clk 0:02:44]}  Nd5 {[%clk 0:02:35]} 13. b3 {[%clk 0:02:43]}  Nb4 {[%clk 0:02:35]} 14. Be4 {[%clk 0:02:21]}  Bxd4 {[%clk 0:02:13]} 15. Rb1 {[%clk 0:02:21]}  Bg7 {[%clk 0:02:09]} 16. d4 {[%clk 0:02:11]}  Nd5 {[%clk 0:01:56]} 17. Ba3 {[%clk 0:02:06]}  Be6 {[%clk 0:01:44]} 18. Rc1 {[%clk 0:02:04]}  Rc8 {[%clk 0:01:29]} 19. Rxc8 {[%clk 0:02:01]}  Qxc8 {[%clk 0:01:30]} 20. Bxd5 {[%clk 0:01:54]}  Bxd5 {[%clk 0:01:31]} 21. Bxe7 {[%clk 0:01:54]}  Re8 {[%clk 0:01:23]} 22. Bc5 {[%clk 0:01:54]}  b6 {[%clk 0:01:18]} 23. Bxb6 {[%clk 0:01:51]}  Qb7 {[%clk 0:01:04]} 24. Nf4 {[%clk 0:01:51]}  Bxg2 {[%clk 0:01:00]} 25. Re1 {[%clk 0:01:37]}  Rxe1+ {[%clk 0:00:51]} 26. Qxe1 {[%clk 0:01:37]}  Qxb6 {[%clk 0:00:51]} 27. Kxg2 {[%clk 0:01:23]}  Qxd4 {[%clk 0:00:48]} 28. Qe3 {[%clk 0:01:10]}  Qd6 {[%clk 0:00:37]} 29. Qe4 {[%clk 0:01:08]}  h5 {[%clk 0:00:33]} 30. Nd3 {[%clk 0:01:04]}  Bd4 {[%clk 0:00:22]} 31. b4 {[%clk 0:01:03]}  Kg7 {[%clk 0:00:20]} 32. a4 {[%clk 0:01:02]}  Qf6 {[%clk 0:00:20]} 33. b5 {[%clk 0:00:59]}  axb5 {[%clk 0:00:21]} 34. axb5 {[%clk 0:00:59]}  h4 {[%clk 0:00:20]} 35. h3 {[%clk 0:00:58]}  Qg5+ {[%clk 0:00:18]} 36. Kf1 {[%clk 0:00:52]}  Qf6 {[%clk 0:00:19]} 37. Qf4 {[%clk 0:00:43]}  Qd8 {[%clk 0:00:15]} 38. Ne5 {[%clk 0:00:40]}  Qd5 {[%clk 0:00:06]} 39. Nd3 {[%clk 0:00:17]}  Bf6 {[%clk 0:00:03]} 40. Ke2 {[%clk 0:00:07]}  Qxb5 {[%clk 0:00:03]} 41. Qe4 {[%clk 0:00:07]}  Qh5+ {[%clk 0:00:03]} 42. Qf3 {[%clk 0:00:06]}  Qb5 {[%clk 0:00:03]} 43. Qe4 {[%clk 0:00:06]}  Qa6 {[%clk 0:00:03]} 44. Kf3 {[%clk 0:00:06]}  Qc8 {[%clk 0:00:03]} 45. Kg2 {[%clk 0:00:06]}  Qc3 {[%clk 0:00:03]} 46. Qf3 {[%clk 0:00:06]}  Qd4 {[%clk 0:00:03]} 47. Nf4 {[%clk 0:00:06]}  Be5 {[%clk 0:00:03]} 48. Ne2 {[%clk 0:00:06]}  Qd7 {[%clk 0:00:03]} 49. Qe4 {[%clk 0:00:06]}  Qe6 {[%clk 0:00:02]} 50. Ng1 {[%clk 0:00:05]} 1-0


[Site "https://www.chess.com"]

[Event "Titled Tuesday Blitz August 16 Early 2022"]
[White "Voege, Tobias"]
[Black "Vrbljanac, Aleksandar"]
[WhiteFideId "1270513"]
[BlackFideId "932817"]
[WhiteElo "2360"]
[BlackElo "2309"]
[Result "0-1"]
[Round "11"]
[TimeControl "180+1"]
[Date "2022.08.16"]
[WhiteClock "0:00:02"]
[BlackClock "0:00:09"]

1. e4 {[%clk 0:03:00]}  e5 {[%clk 0:02:59]} 2. Nf3 {[%clk 0:03:00]}  Nc6 {[%clk 0:02:58]} 3. d4 {[%clk 0:03:00]}  exd4 {[%clk 0:02:52]} 4. Nxd4 {[%clk 0:03:01]}  Nf6 {[%clk 0:02:52]} 5. Nc3 {[%clk 0:03:01]}  Bb4 {[%clk 0:02:52]} 6. Nxc6 {[%clk 0:03:01]}  bxc6 {[%clk 0:02:52]} 7. Bd3 {[%clk 0:03:01]}  O-O {[%clk 0:02:53]} 8. O-O {[%clk 0:03:01]}  d5 {[%clk 0:02:53]} 9. exd5 {[%clk 0:03:01]}  cxd5 {[%clk 0:02:54]} 10. Bg5 {[%clk 0:03:01]}  c6 {[%clk 0:02:54]} 11. Qf3 {[%clk 0:02:52]}  h6 {[%clk 0:02:53]} 12. Bxf6 {[%clk 0:02:49]}  Qxf6 {[%clk 0:02:53]} 13. Qxf6 {[%clk 0:02:48]}  gxf6 {[%clk 0:02:54]} 14. Ne2 {[%clk 0:02:48]}  Bc5 {[%clk 0:02:53]} 15. Ng3 {[%clk 0:02:40]}  Rb8 {[%clk 0:02:53]} 16. Rab1 {[%clk 0:02:37]}  Re8 {[%clk 0:02:53]} 17. Nh5 {[%clk 0:02:28]}  Re6 {[%clk 0:02:24]} 18. b4 {[%clk 0:02:14]}  Rxb4 {[%clk 0:02:19]} 19. Rxb4 {[%clk 0:02:12]}  Bxb4 {[%clk 0:02:19]} 20. Bf5 {[%clk 0:02:12]}  Re8 {[%clk 0:01:53]} 21. Nxf6+ {[%clk 0:02:11]}  Kf8 {[%clk 0:01:53]} 22. Nxe8 {[%clk 0:01:55]}  Bxf5 {[%clk 0:01:52]} 23. Nc7 {[%clk 0:01:54]}  Bxc2 {[%clk 0:01:26]} 24. Rc1 {[%clk 0:01:33]}  Ba4 {[%clk 0:01:25]} 25. Na6 {[%clk 0:01:27]}  Bd2 {[%clk 0:01:09]} 26. Rb1 {[%clk 0:01:05]}  d4 {[%clk 0:01:00]} 27. Rb7 {[%clk 0:00:42]}  Bc3 {[%clk 0:00:43]} 28. Nc5 {[%clk 0:00:15]}  Bc2 {[%clk 0:00:36]} 29. Rd7 {[%clk 0:00:12]}  Ke8 {[%clk 0:00:28]} 30. Rd6 {[%clk 0:00:10]}  Ke7 {[%clk 0:00:13]} 31. Rxc6 {[%clk 0:00:09]}  Bb1 {[%clk 0:00:14]} 32. a4 {[%clk 0:00:03]}  Bb4 {[%clk 0:00:14]} 33. Nb3 {[%clk 0:00:01]}  d3 {[%clk 0:00:12]} 34. Rc4 {[%clk 0:00:02]}  a5 {[%clk 0:00:08]} 35. Rd4 {[%clk 0:00:02]}  Bc2 {[%clk 0:00:08]} 36. Kf1 {[%clk 0:00:02]}  Bxb3 {[%clk 0:00:08]} 37. f3 {[%clk 0:00:02]}  Bxa4 {[%clk 0:00:07]} 38. Kf2 {[%clk 0:00:02]}  d2 {[%clk 0:00:08]} 39. Ke3 {[%clk 0:00:03]}  d1=Q {[%clk 0:00:08]} 40. Rxd1 {[%clk 0:00:02]}  Bxd1 {[%clk 0:00:09]} 0-1


[Site "https://www.chess.com"]

[Event "Titled Tuesday Blitz August 16 Early 2022"]
[White "Vovk, Orest"]
[Black "Begunov, Konstantin"]
[WhiteFideId "14113490"]
[BlackFideId "4118510"]
[WhiteElo "2203"]
[BlackElo "2262"]
[Result "1-0"]
[Round "11"]
[TimeControl "180+1"]
[Date "2022.08.16"]
[WhiteClock "0:00:22"]
[BlackClock "0:00:03"]

1. h4 {[%clk 0:02:55]}  d5 {[%clk 0:02:59]} 2. h5 {[%clk 0:02:51]}  c5 {[%clk 0:02:56]} 3. e4 {[%clk 0:02:49]}  dxe4 {[%clk 0:02:55]} 4. Nc3 {[%clk 0:02:49]}  Nf6 {[%clk 0:02:51]} 5. Rh4 {[%clk 0:02:48]}  Bf5 {[%clk 0:02:40]} 6. g4 {[%clk 0:02:48]}  Bc8 {[%clk 0:02:07]} 7. g5 {[%clk 0:02:46]}  Nd5 {[%clk 0:02:07]} 8. Nxe4 {[%clk 0:02:46]}  e5 {[%clk 0:02:02]} 9. Bb5+ {[%clk 0:02:38]}  Nc6 {[%clk 0:02:02]} 10. Bxc6+ {[%clk 0:02:34]}  bxc6 {[%clk 0:02:01]} 11. d3 {[%clk 0:02:35]}  Be7 {[%clk 0:01:54]} 12. Nf3 {[%clk 0:02:30]}  h6 {[%clk 0:01:52]} 13. gxh6 {[%clk 0:02:14]}  Bxh4 {[%clk 0:01:40]} 14. hxg7 {[%clk 0:02:14]}  Rg8 {[%clk 0:01:38]} 15. h6 {[%clk 0:02:14]}  Bf5 {[%clk 0:01:32]} 16. Nxh4 {[%clk 0:01:52]}  Bxe4 {[%clk 0:01:01]} 17. dxe4 {[%clk 0:01:40]}  Qxh4 {[%clk 0:01:01]} 18. exd5 {[%clk 0:01:41]}  O-O-O {[%clk 0:00:55]} 19. Qf3 {[%clk 0:00:57]}  Rxd5 {[%clk 0:00:51]} 20. Bd2 {[%clk 0:00:43]}  e4 {[%clk 0:00:41]} 21. Qxf7 {[%clk 0:00:35]}  Rxd2 {[%clk 0:00:08]} 22. Qxg8+ {[%clk 0:00:28]}  Rd8 {[%clk 0:00:07]} 23. Qxd8+ {[%clk 0:00:26]}  Qxd8 {[%clk 0:00:05]} 24. h7 {[%clk 0:00:24]}  Kb7 {[%clk 0:00:03]} 25. g8=Q {[%clk 0:00:22]} 1-0


[Site "https://www.chess.com"]

[Event "Titled Tuesday Blitz August 16 Early 2022"]
[White "Xu, Yi"]
[Black "Salem, A.R. Saleh"]
[WhiteFideId "8605564"]
[BlackFideId "9301348"]
[WhiteElo "2471"]
[BlackElo "2674"]
[Result "1-0"]
[Round "11"]
[TimeControl "180+1"]
[Date "2022.08.16"]
[WhiteClock "0:00:05"]
[BlackClock "0:00:02"]

1. e4 {[%clk 0:02:57]}  c6 {[%clk 0:03:00]} 2. d4 {[%clk 0:02:57]}  d5 {[%clk 0:03:01]} 3. e5 {[%clk 0:02:58]}  Bf5 {[%clk 0:03:01]} 4. h4 {[%clk 0:02:59]}  h5 {[%clk 0:03:00]} 5. Bd3 {[%clk 0:02:59]}  Bxd3 {[%clk 0:03:01]} 6. Qxd3 {[%clk 0:03:00]}  Qa5+ {[%clk 0:03:01]} 7. Nd2 {[%clk 0:03:00]}  e6 {[%clk 0:03:00]} 8. Ne2 {[%clk 0:03:00]}  Ne7 {[%clk 0:03:01]} 9. c4 {[%clk 0:02:59]}  Nf5 {[%clk 0:03:00]} 10. b3 {[%clk 0:02:26]}  Be7 {[%clk 0:02:49]} 11. g3 {[%clk 0:02:22]}  dxc4 {[%clk 0:02:42]} 12. bxc4 {[%clk 0:02:18]}  Na6 {[%clk 0:02:25]} 13. O-O {[%clk 0:02:15]}  Rd8 {[%clk 0:02:25]} 14. Ne4 {[%clk 0:01:56]}  Qxe5 {[%clk 0:02:21]} 15. Bb2 {[%clk 0:01:49]}  Qa5 {[%clk 0:01:57]} 16. Qf3 {[%clk 0:01:48]}  Qb4 {[%clk 0:01:41]} 17. Qb3 {[%clk 0:01:17]}  b5 {[%clk 0:01:41]} 18. cxb5 {[%clk 0:01:14]}  Qxb5 {[%clk 0:01:29]} 19. Nf4 {[%clk 0:00:58]}  Nb4 {[%clk 0:01:13]} 20. a4 {[%clk 0:00:40]}  Qb6 {[%clk 0:01:00]} 21. Nxe6 {[%clk 0:00:41]}  Nd5 {[%clk 0:00:50]} 22. N6c5 {[%clk 0:00:31]}  Qxb3 {[%clk 0:00:50]} 23. Nxb3 {[%clk 0:00:31]}  Rb8 {[%clk 0:00:50]} 24. Ned2 {[%clk 0:00:27]}  O-O {[%clk 0:00:43]} 25. Ba3 {[%clk 0:00:27]}  Bxa3 {[%clk 0:00:41]} 26. Rxa3 {[%clk 0:00:27]}  Nb4 {[%clk 0:00:37]} 27. Rc1 {[%clk 0:00:27]}  Rfe8 {[%clk 0:00:36]} 28. Kf1 {[%clk 0:00:22]}  g6 {[%clk 0:00:34]} 29. Raa1 {[%clk 0:00:20]}  Re6 {[%clk 0:00:23]} 30. Nf3 {[%clk 0:00:20]}  f6 {[%clk 0:00:20]} 31. Nc5 {[%clk 0:00:20]}  Re7 {[%clk 0:00:19]} 32. Re1 {[%clk 0:00:19]}  Rbe8 {[%clk 0:00:19]} 33. Rxe7 {[%clk 0:00:19]}  Rxe7 {[%clk 0:00:20]} 34. Rc1 {[%clk 0:00:16]}  Kf7 {[%clk 0:00:18]} 35. Rc4 {[%clk 0:00:16]}  a5 {[%clk 0:00:19]} 36. Rc1 {[%clk 0:00:15]}  Nd6 {[%clk 0:00:19]} 37. Re1 {[%clk 0:00:14]}  Nc4 {[%clk 0:00:16]} 38. Rxe7+ {[%clk 0:00:14]}  Kxe7 {[%clk 0:00:17]} 39. Ke2 {[%clk 0:00:14]}  Nb2 {[%clk 0:00:17]} 40. Nd2 {[%clk 0:00:13]}  f5 {[%clk 0:00:15]} 41. Ndb3 {[%clk 0:00:14]}  Nc4 {[%clk 0:00:15]} 42. Nb7 {[%clk 0:00:10]}  Nb2 {[%clk 0:00:09]} 43. N7c5 {[%clk 0:00:11]}  Nc4 {[%clk 0:00:09]} 44. Nb7 {[%clk 0:00:11]}  Nb6 {[%clk 0:00:09]} 45. N7c5 {[%clk 0:00:10]}  N4d5 {[%clk 0:00:06]} 46. Nxa5 {[%clk 0:00:09]}  Kd6 {[%clk 0:00:06]} 47. Nab7+ {[%clk 0:00:09]}  Kc7 {[%clk 0:00:06]} 48. Na5 {[%clk 0:00:09]}  Nc3+ {[%clk 0:00:06]} 49. Kd3 {[%clk 0:00:09]}  Ncxa4 {[%clk 0:00:07]} 50. Nxa4 {[%clk 0:00:10]}  Nxa4 {[%clk 0:00:08]} 51. Nc4 {[%clk 0:00:10]}  Nb6 {[%clk 0:00:05]} 52. Ne5 {[%clk 0:00:10]}  Nd5 {[%clk 0:00:05]} 53. Nxg6 {[%clk 0:00:11]}  Kd6 {[%clk 0:00:05]} 54. Ne5 {[%clk 0:00:10]}  Nf6 {[%clk 0:00:05]} 55. Ng6 {[%clk 0:00:10]}  Ne4 {[%clk 0:00:05]} 56. Ke3 {[%clk 0:00:09]}  Nf6 {[%clk 0:00:05]} 57. Kf4 {[%clk 0:00:09]}  Kd5 {[%clk 0:00:04]} 58. Ne7+ {[%clk 0:00:08]}  Kxd4 {[%clk 0:00:04]} 59. Nxc6+ {[%clk 0:00:08]}  Kd3 {[%clk 0:00:05]} 60. Kxf5 {[%clk 0:00:08]}  Ne4 {[%clk 0:00:06]} 61. Ne5+ {[%clk 0:00:08]}  Kd4 {[%clk 0:00:06]} 62. Nf3+ {[%clk 0:00:08]}  Kd5 {[%clk 0:00:06]} 63. Kg6 {[%clk 0:00:07]}  Nxf2 {[%clk 0:00:06]} 64. Kxh5 {[%clk 0:00:07]}  Ne4 {[%clk 0:00:05]} 65. Kg4 {[%clk 0:00:07]}  Nf2+ {[%clk 0:00:05]} 66. Kf5 {[%clk 0:00:06]}  Ne4 {[%clk 0:00:05]} 67. g4 {[%clk 0:00:07]}  Ng3+ {[%clk 0:00:05]} 68. Kf4 {[%clk 0:00:06]}  Ne2+ {[%clk 0:00:05]} 69. Ke3 {[%clk 0:00:06]}  Ng3 {[%clk 0:00:05]} 70. Nd4 {[%clk 0:00:05]}  Ke5 {[%clk 0:00:05]} 71. Nc6+ {[%clk 0:00:05]}  Kf6 {[%clk 0:00:06]} 72. Kf4 {[%clk 0:00:05]}  Ne2+ {[%clk 0:00:06]} 73. Kf3 {[%clk 0:00:05]}  Ng1+ {[%clk 0:00:05]} 74. Ke3 {[%clk 0:00:05]}  Ke6 {[%clk 0:00:04]} 75. Nd4+ {[%clk 0:00:05]}  Kf6 {[%clk 0:00:05]} 76. Nf3 {[%clk 0:00:05]}  Nh3 {[%clk 0:00:05]} 77. Nd4 {[%clk 0:00:04]}  Ke5 {[%clk 0:00:05]} 78. Ne2 {[%clk 0:00:04]}  Kf6 {[%clk 0:00:02]} 79. Kf3 {[%clk 0:00:04]}  Ke5 {[%clk 0:00:02]} 80. Kg3 {[%clk 0:00:05]} 1-0


[Site "https://www.chess.com"]

[Event "Titled Tuesday Blitz August 16 Early 2022"]
[White "Ziatdinov, Raset"]
[Black "Manukian, Artak"]
[WhiteFideId "2015323"]
[BlackFideId "13301373"]
[WhiteElo "2220"]
[BlackElo "2196"]
[Result "0-1"]
[Round "11"]
[TimeControl "180+2"]
[Date "2022.08.18"]
[WhiteClock "0:00:00"]
[BlackClock "0:00:00"]

1. e4 {[%clk 0:00:00]}  c6 {[%clk 0:00:00]} 2. d4 {[%clk 0:00:00]}  d5 {[%clk 0:00:00]} 3. Nc3 {[%clk 0:00:00]}  dxe4 {[%clk 0:00:00]} 4. Nxe4 {[%clk 0:00:00]}  Nf6 {[%clk 0:00:00]} 5. Nxf6+ {[%clk 0:00:00]}  exf6 {[%clk 0:00:00]} 6. Bd3 {[%clk 0:00:00]}  Bd6 {[%clk 0:00:00]} 7. Ne2 {[%clk 0:00:00]}  O-O {[%clk 0:00:00]} 8. c4 {[%clk 0:00:00]}  Qc7 {[%clk 0:00:00]} 9. h3 {[%clk 0:00:00]}  Re8 {[%clk 0:00:00]} 10. O-O {[%clk 0:00:00]}  Nd7 {[%clk 0:00:00]} 11. c5 {[%clk 0:00:00]}  Bf8 {[%clk 0:00:00]} 12. Bf4 {[%clk 0:00:00]}  Qd8 {[%clk 0:00:00]} 13. Nc3 {[%clk 0:00:00]}  b6 {[%clk 0:00:00]} 14. b4 {[%clk 0:00:00]}  a5 {[%clk 0:00:00]} 15. a3 {[%clk 0:00:00]}  Ba6 {[%clk 0:00:00]} 16. Bxa6 {[%clk 0:00:00]}  Rxa6 {[%clk 0:00:00]} 17. Qd3 {[%clk 0:00:00]}  b5 {[%clk 0:00:00]} 18. Rfe1 {[%clk 0:00:00]}  g6 {[%clk 0:00:00]} 19. Ne4 {[%clk 0:00:00]}  f5 {[%clk 0:00:00]} 20. Nd6 {[%clk 0:00:00]}  Rxe1+ {[%clk 0:00:00]} 21. Rxe1 {[%clk 0:00:00]}  Nf6 {[%clk 0:00:00]} 22. bxa5 {[%clk 0:00:00]}  Qxa5 {[%clk 0:00:00]} 23. Be5 {[%clk 0:00:00]}  Qxe1+ {[%clk 0:00:00]} 24. Kh2 {[%clk 0:00:00]}  Nd5 {[%clk 0:00:00]} 25. Qb3 {[%clk 0:00:00]}  Qxf2 {[%clk 0:00:00]} 26. Nxb5 {[%clk 0:00:00]}  cxb5 {[%clk 0:00:00]} 27. Qxd5 {[%clk 0:00:00]}  Rxa3 {[%clk 0:00:00]} 28. c6 {[%clk 0:00:00]}  f4 {[%clk 0:00:00]} 29. Kh1 {[%clk 0:00:00]}  Ra1+ {[%clk 0:00:00]} 30. Kh2 {[%clk 0:00:00]}  Qg1# {[%clk 0:00:00]} 0-1


[Site "https://www.chess.com"]